[Event "USA Championship 2022"]
[Site "Saint Louis"]
[Date "2022.10.11"]
[Round "6.7"]
[White "Liang, Awonder"]
[Black "Yoo, Christopher Woojin"]
[Result "1/2-1/2"]
[ECO "B47"]
[WhiteElo "2608"]
[BlackElo "2563"]
[Annotator "TA"]
[PlyCount "94"]
[EventDate "2022.09.05"]
[EventType "tourn"]
[EventCountry "USA"]
[SourceTitle "playchess.com"]
[Source "ChessBase"]
[SourceQuality "1"]
[TimeControl "40/5400+30:1800+30"]

{[%evp 11,94,26,10,18,15,10,10,9,41,14,39,35,72,22,26,6,18,-21,-9,-39,6,0,0,0,0,0,0,0,0,0,4,5,31,15,27,16,28,21,21,23,23,0,47,31,48,24,25,8,8,8,8,8,8,8,8,0,0,0,0,0,0,0,0,0,0,0,0,0,8,8,8,8,8,0,0,0,0,0,0,0,0,0,0,-8,-8]} 1. e4 {[%emt 0:00:01]} c5 {[%emt 0:05:32]} 2. Nf3 {[%emt 0:00:02][%cal Bg1f3,Bf3d4,Bd4b5][%mdl 32]} e6 {[%emt 0:00:36]} 3. d4 {[%emt 0:00:03]} cxd4 {[%emt 0:00:06]} 4. Nxd4 {[%emt 0:00:07]} Nc6 {[%emt 0:00:06]} 5. Nc3 {[%emt 0:00:05]} Qc7 {[%emt 0:00:06]} 6. Be2 {[%emt 0:00:32]} Nf6 {[%emt 0:00:07]} 7. Ndb5 $1 {[%emt 0:00:22][%mdl 4] is currently scoring better than 7.0-0. B47: Sicilian: Taimanov: 5 Nc3 Qc7 6 f4, 6 g3 and 6 Be2.} Qb8 {[%emt 0:00:08]} 8. f4 {[%emt 0:00:02]} d6 {[%emt 0:00:58] Inhibits e5.} 9. Be3 {[%emt 0:09:52]} Be7 {[%emt 0:00:52]} 10. g4 {[%emt 0:03:14]} h6 {[%emt 0:11:46] [#]} 11. Nd4 $146 {[%emt 0:06:33]} ({Predecessor:} 11. a4 b6 12. Qd2 a6 13. Na3 d5 14. exd5 Nxd5 15. Nxd5 exd5 16. Qxd5 Bb7 17. O-O {0-1 (39) Ciurlanti,F (2079)-Liascovich,L (2424) Villa Martelli 2010}) 11... Bd7 {[%emt 0:07:02]} 12. h4 {[%emt 0:04:54] White is more active.} (12. g5 $16 hxg5 13. fxg5) 12... Nxd4 $11 {[%emt 0:04:28]} 13. Qxd4 {[%emt 0:00:33]} b5 {[%emt 0:01:16][%cal Bb7b5,Bb5b4][%mdl 32]} 14. Rg1 {[%emt 0:14:38]} b4 {[%emt 0:05:00]} 15. Nd1 {[%emt 0:01:03][%cal Bc3d1,Bd1f2,Bf2e4][%mdl 32]} d5 {[%emt 0:06:11]} (15... e5 $5 {[%cal Re5d4]} 16. fxe5 dxe5 $15) 16. Nf2 {[%emt 0:08:37] aiming for g5.} dxe4 {[%emt 0:03:19]} 17. O-O-O {[%emt 0:00:31] Black must now prevent g5.} Qb6 {[%emt 0:08:06]} 18. Nxe4 {[%emt 0:20:06]} Qxd4 {[%emt 0:03:10]} 19. Rxd4 {[%emt 0:00:02]} Nd5 {[%emt 0:01:44]} 20. Bd2 {[%emt 0:00:13][%cal Of4f5]} Bc6 {[%emt 0:03:24]} 21. f5 {[%emt 0:02:01]} Bxh4 {[%emt 0:03:55]} 22. fxe6 {[%emt 0:04:58]} fxe6 {[%emt 0:01:09]} 23. g5 {[%emt 0:00:17]} hxg5 {[%emt 0:02:10]} 24. Bxg5 {[%emt 0:00:11]} Bxg5+ {[%emt 0:01:23]} 25. Nxg5 {[%emt 0:00:02]} Ke7 {[%emt 0:01:25]} 26. Bg4 {[%emt 0:01:51][%mdl 1024] White has compensation.} e5 {[%emt 0:10:49]} (26... Ne3 $11 {might be stronger.}) 27. Rc4 $14 {[%emt 0:04:02]} Rh6 {[%emt 0:02:35]} 28. Re1 {[%emt 0:01:23] Against Ne3} (28. Bf3 $5 {[%cal Rc4c6]} Rf8 {[#]} 29. Rxc6 $1 Rxc6 30. Bxd5 $14) 28... Rf8 $1 {[%emt 0:05:25] [#]} 29. Ne6 $1 {[%emt 0:03:31]} Bb5 {[%emt 0:03:14] The position is equal.} 30. Rc5 {[%emt 0:00:16]} Rf1 {[%emt 0:00:18]} 31. Rxf1 {[%emt 0:00:37]} Bxf1 {[%emt 0:00:04]} 32. Rxd5 {[%emt 0:06:16]} Bc4 {[%emt 0:00:10]} 33. Ra5 {[%emt 0:02:23]} Bxe6 {[%emt 0:02:44]} 34. Rxa7+ $11 {[%emt 0:00:01][%mdl 4096] Endgame KRB-KRB} Kf6 {[%emt 0:00:29]} 35. Ra6 {[%emt 0:00:38]} Ke7 {[%emt 0:00:05]} 36. Ra7+ {[%emt 0:00:02]} Kf6 {[%emt 0:00:10]} 37. Bxe6 {[%emt 0:00:46]} Kxe6 {[%emt 0:01:19]} 38. Rxg7 {[%emt 0:00:03] KR-KR} Rh1+ {[%emt 0:00:10]} 39. Kd2 {[%emt 0:00:04]} Rh2+ {[%emt 0:00:05]} 40. Kd3 {[%emt 0:01:35]} e4+ {[%emt 0:00:03]} 41. Kxe4 {[%emt 0:30:10] Kd3 is the strong threat.} Rxc2 {[%emt 0:30:03]} 42. Kd4 {[%emt 0:00:28]} Rxb2 {[%emt 0:00:05]} 43. Kc4 {[%emt 0:00:04]} Rxa2 {[%emt 0:00:04]} 44. Kxb4 {[%emt 0:00:04]} Rf2 {[%emt 0:00:03]} 45. Rh7 {[%emt 0:00:06]} Rf7 {[%emt 0:00:03]} 46. Rh6+ {[%emt 0:00:05]} Rf6 {[%emt 0:00:11]} 47. Rxf6+ {[%emt 0:00:09]} Kxf6 {[%emt 0:00:03] Weighted Error Value: White=0.10 (very precise) /Black=0.06 (flawless)} 1/2-1/2

[Event "USA Championship 2022"]
[Site "Saint Louis"]
[Date "2022.10.12"]
[Round "7.1"]
[White "Xiong, Jeffery"]
[Black "Liang, Awonder"]
[Result "1/2-1/2"]
[ECO "D02"]
[WhiteElo "2690"]
[BlackElo "2608"]
[Annotator "TA"]
[PlyCount "104"]
[EventDate "2022.09.05"]
[EventType "tourn"]
[EventCountry "USA"]
[SourceTitle "playchess.com"]
[Source "ChessBase"]
[SourceQuality "1"]
[TimeControl "40/5400+30:1800+30"]

{[%evp 15,104,44,37,44,50,46,37,39,59,42,41,41,54,27,24,27,28,26,21,22,21,33,18,21,22,31,23,25,40,15,22,15,20,20,31,0,20,0,35,22,30,30,46,30,20,18,23,0,29,0,0,0,0,0,0,0,0,0,0,0,0,0,0,0,0,0,0,0,0,0,0,0,0,0,0,0,0,0,0,0,0,0,0,0,0,0,0,0,19,0,0]} 1. d4 {[%emt 0:00:13]} d5 {[%emt 0:00:02]} 2. Nf3 {[%emt 0:01:25]} Nf6 {[%emt 0:00:02]} 3. g3 {[%emt 0:01:11]} c5 {[%emt 0:00:32]} 4. Bg2 {[%emt 0:00:14]} cxd4 {[%emt 0:00:47]} 5. O-O {[%emt 0:00:20]} Nc6 {[%emt 0:03:00]} 6. Nxd4 {[%emt 0:00:16]} e5 {[%emt 0:00:02]} 7. Nxc6 {[%emt 0:00:16]} bxc6 {[%emt 0:00:01]} 8. c4 {[%emt 0:00:17]} Be6 {[%emt 0:00:03]} 9. Qa4 {[%emt 0:17:48] D02: 1 d4 d5 2 Nf3 sidelines, including 2...Nf6 3 g3 and 2...Nf6 3 Bf4.} Qd7 {[%emt 0:00:02]} 10. Nc3 {[%emt 0:09:57]} Rc8 {[%emt 0:00:31]} 11. cxd5 {[%emt 0:05:03] White is slightly better.} cxd5 {[%emt 0:00:09]} 12. Qxd7+ {[%emt 0:00:05]} Kxd7 {[%emt 0:00:18]} 13. Rd1 {[%emt 0:00:05]} Bc5 {[%emt 0:00:17]} 14. Nxd5 {[%emt 0:25:58]} Nxd5 {[%emt 0:00:50]} 15. Bxd5 {[%emt 0:00:03]} Bxd5 {[%emt 0:00:11][%mdl 64] [#] Remove Defender} 16. Rxd5+ {[%emt 0:00:04]} Ke6 {[%emt 0:00:08]} 17. Rd2 {[%emt 0:00:05]} Rhd8 {[%emt 0:17:57]} 18. Kf1 {[%emt 0:01:32]} Bb6 {[%emt 0:01:19][%cal Oc8c1] ...Rxc1+! is the strong threat.} 19. Rxd8 {[%emt 0:04:17]} Rxd8 {[%emt 0:00:01]} 20. Be3 {[%emt 0:02:44]} Bxe3 {[%emt 0:01:02]} 21. fxe3 $14 {[%emt 0:00:02][%mdl 4096] [#] Endgame KR-KR} Rc8 $146 {[%emt 0:13:08] Inhibits Rc1.} ({Predecessor:} 21... a5 22. Rc1 Rd2 23. Rc6+ Kf5 24. Rb6 Rd1+ 25. Kf2 Rb1 26. Rb7 f6 27. Rxg7 Rxb2 {½-½ (63) Keymer,V (2655)-Huschenbeth,N (2611) Germany 2022}) 22. Ke1 {[%emt 0:00:40]} f6 {[%emt 0:01:16]} 23. Rd1 {[%emt 0:03:45]} Rc2 {[%emt 0:02:34]} 24. Rd2 {[%emt 0:00:13]} Rc1+ {[%emt 0:00:07]} 25. Rd1 {[%emt 0:00:02]} Rc2 {[%emt 0:00:07]} 26. Rd2 {[%emt 0:00:04]} Rc1+ {[%emt 0:00:06]} 27. Kf2 {[%emt 0:00:05]} h5 {[%emt 0:12:14]} 28. e4 {[%emt 0:08:12]} g5 {[%emt 0:10:03]} 29. Rd5 {[%emt 0:03:29] Black must now prevent Ra5.} Rh1 {[%emt 0:02:50]} 30. Kg2 {[%emt 0:02:22]} Re1 {[%emt 0:00:02]} 31. Kf2 {[%emt 0:00:32]} Rh1 {[%emt 0:00:06]} 32. Ra5 {[%emt 0:01:09]} (32. h3 $5 {[%cal Rd5a5]}) 32... Rxh2+ {[%emt 0:00:03] The position is equal.} 33. Kf1 {[%emt 0:00:13]} Rh1+ {[%emt 0:16:28]} 34. Kg2 {[%emt 0:00:18]} Rb1 {[%emt 0:00:02]} 35. Ra6+ {[%emt 0:01:09]} Kf7 {[%emt 0:00:01]} 36. Rxa7+ {[%emt 0:00:19]} Kg6 {[%emt 0:00:01]} 37. Rb7 {[%emt 0:02:09]} Ra1 {[%emt 0:00:02]} 38. a3 {[%emt 0:01:05]} g4 {[%emt 0:03:43]} 39. Kf2 {[%emt 0:04:48]} Kg5 {[%emt 0:02:01]} 40. Rg7+ {[%emt 0:00:52]} Kh6 {[%emt 0:00:01]} 41. Ra7 {[%emt 0:33:31]} Rb1 {[%emt 0:30:15]} 42. Rb7 {[%emt 0:00:00]} Ra1 {[%emt 0:00:00]} 43. Rd7 {[%emt 0:00:00]} Kg5 {[%emt 0:00:00]} 44. Rd8 {[%emt 0:00:00]} Ra2 {[%emt 0:00:00]} 45. Rg8+ {[%emt 0:00:00]} Kh6 {[%emt 0:00:00]} 46. Rb8 {[%emt 0:00:00]} Ra1 {[%emt 0:00:00]} 47. Rb3 {[%emt 0:00:00]} Kg5 {[%emt 0:00:00]} 48. Rb6 {[%emt 0:00:00]} Kg6 {[%emt 0:00:00]} 49. Ra6 {[%emt 0:00:00]} Rb1 {[%emt 0:00:00]} 50. Rb6 {[%emt 0:00:00]} Ra1 {[%emt 0:00:00]} 51. Ra6 {[%emt 0:00:00]} Rb1 {[%emt 0:00:00]} 52. Rb6 {[%emt 0:00:00]} Ra1 {[%emt 0:00:56] Weighted Error Value: White=0.05 (flawless) /Black=0.02 (flawless)} 1/2-1/2

[Event "USA Championship 2022"]
[Site "Saint Louis"]
[Date "2022.10.12"]
[Round "7.2"]
[White "Swiercz, Dariusz"]
[Black "Niemann, Hans Moke"]
[Result "1-0"]
[ECO "E11"]
[WhiteElo "2652"]
[BlackElo "2699"]
[Annotator "TA"]
[PlyCount "55"]
[EventDate "2022.09.05"]
[EventType "tourn"]
[EventCountry "USA"]
[SourceTitle "playchess.com"]
[Source "ChessBase"]
[SourceQuality "1"]
[TimeControl "40/5400+30:1800+30"]

{[%evp 18,55,12,8,22,17,17,17,2,18,35,0,0,0,0,0,14,0,0,0,12,2,56,33,72,76,124,116,235,214,562,507,1824,583,567,567,558,556,622,571]} 1. d4 {[%emt 0:02:03]} Nf6 {[%emt 0:00:16]} 2. c4 {[%emt 0:00:06]} e6 {[%emt 0:00:08]} 3. g3 {[%emt 0:00:41]} Bb4+ {[%emt 0:00:21]} 4. Bd2 {[%emt 0:00:05]} Be7 {[%emt 0:00:10]} 5. Bg2 {[%emt 0:00:10]} d5 {[%emt 0:00:05]} 6. Nf3 {[%emt 0:00:10]} O-O {[%emt 0:00:10]} 7. O-O {[%emt 0:00:10]} Nbd7 {[%emt 0:00:06]} 8. Qc2 {[%emt 0:02:14]} c6 {[%emt 0:00:07]} 9. Rd1 {[%emt 0:00:28]} b6 {[%emt 0:00:11]} 10. b3 {[%emt 0:01:45]} a5 {[%emt 0:01:29] E11: Bogo-Indian.} 11. Bc3 {[%emt 0:00:57]} Bb7 {[%emt 0:01:26]} 12. Nbd2 {[%emt 0:00:40]} Qc7 {[%emt 0:00:16] The position is equal.} (12... c5 {looks sharper.} 13. Ne5 cxd4 14. Bxd4 Bc5) 13. Rac1 {[%emt 0:19:15]} Rac8 {[%emt 0:00:21]} 14. Qb1 {[%emt 0:03:02]} c5 {[%emt 0:02:21]} 15. cxd5 {[%emt 0:07:49]} Bxd5 {[%emt 0:00:35]} 16. e4 {[%emt 0:09:06][%cal Be2e4,Be4e5,Be5d6,Bd6d7][%mdl 32]} Bb7 {[%emt 0:00:24]} 17. Bb2 {[%emt 0:00:12]} Qb8 {[%emt 0:01:36]} 18. e5 {[%emt 0:04:23]} Nd5 {[%emt 0:00:09]} 19. Nc4 {[%emt 0:00:06] [#]} Qa8 $146 {[%emt 0:02:15]} ({Better is} 19... Rfd8 $11) ({Predecessor:} 19... h6 20. Re1 cxd4 21. Bxd4 Nb4 22. Nd6 Bxd6 23. exd6 Qxd6 24. Rcd1 Bd5 25. Bb2 Rfd8 {0-1 (52) Hera,I (2614)-Volokitin,A (2633) Hungary 2019}) 20. dxc5 {[%emt 0:08:56]} Nxc5 {[%emt 0:02:06]} 21. Nd6 {[%emt 0:11:15] White is more active.} Bxd6 {[%emt 0:01:05]} ({Black should play} 21... Rcd8) 22. Ng5 $16 {[%emt 0:00:17][%csl Gg5][%cal Rb1h7]} ({Don't do} 22. exd6 $6 Nf4 $1 23. gxf4 Bxf3 $11) 22... g6 {[%emt 0:09:08]} 23. exd6 $18 {[%emt 0:00:13]} Qb8 $2 {[%emt 0:06:20]} (23... Rce8 {is more resistant.} 24. Rxc5 bxc5) 24. Rc4 {[%emt 0:03:49] White is clearly winning.} h6 {[%emt 0:02:43] [#]} (24... Qxd6 $142 25. Rh4 Qe7) 25. Nxe6 $1 {[%emt 0:06:37][%mdl 512]} Nxe6 {[%emt 0:00:27]} 26. Bxd5 {[%emt 0:00:05]} Bxd5 {[%emt 0:00:11]} 27. Rxd5 {[%emt 0:00:04] Threatens to win with Rh4.} Qb7 {[%emt 0:01:31]} 28. d7 {[%emt 0:03:26] Weighted Error Value: White=0.33/Black=0.64} 1-0

[Event "USA Championship 2022"]
[Site "Saint Louis"]
[Date "2022.10.12"]
[Round "7.3"]
[White "Yoo, Christopher Woojin"]
[Black "Aronian, Levon"]
[Result "1/2-1/2"]
[ECO "C56"]
[WhiteElo "2563"]
[BlackElo "2755"]
[Annotator "TA"]
[PlyCount "39"]
[EventDate "2022.09.05"]
[EventType "tourn"]
[EventCountry "USA"]
[SourceTitle "playchess.com"]
[Source "ChessBase"]
[SourceQuality "1"]
[TimeControl "40/5400+30:1800+30"]

{[%evp 11,39,0,0,0,0,0,0,0,0,0,0,0,0,0,4,-25,0,-1,-16,-25,0,0,0,0,0,0,0,0,0,0]} 1. e4 {[%emt 0:03:26][%cal Be2e4,Be4e5][%mdl 32]} e5 {[%emt 0:00:05]} 2. Nf3 {[%emt 0:00:18]} Nc6 {[%emt 0:00:05]} 3. Bc4 {[%emt 0:00:17]} Nf6 {[%emt 0:00:07][%cal Bg8f6,Bf6e4,Be4c5,Bc5e6,Be6f4][%mdl 32]} 4. d4 {[%emt 0:00:02]} exd4 {[%emt 0:00:08]} 5. e5 {[%emt 0:00:04]} Ne4 {[%emt 0:00:06]} 6. Qe2 {[%emt 0:02:30]} Nc5 $1 {[%emt 0:01:02]} (6... Bb4+ $2 7. Kd1 $16) 7. O-O {[%emt 0:00:28] C56: Two Knights: 4 d4 exd4 5 0-0 Nxe4.} Ne6 $1 {[%emt 0:00:18][%mdl 4] outshines the older 7...Be7.} 8. c3 {[%emt 0:03:13]} d5 {[%emt 0:01:55]} 9. exd6 $1 {[%emt 0:03:16]} Bxd6 {[%emt 0:00:40]} 10. Bg5 {[%emt 0:03:01]} Be7 {[%emt 0:01:48]} 11. Bxe7 {[%emt 0:00:13]} Qxe7 {[%emt 0:00:04]} 12. Rd1 {[%emt 0:04:10][%cal Rc3d4] [#]} Nf4 $146 {[%emt 0:19:26]} ({Predecessor:} 12... O-O 13. cxd4 Nf4 14. Qe3 Qf6 15. Nc3 Bg4 16. Ne4 Qh6 17. Neg5 Bxf3 18. Nxf3 Rae8 {1-0 (78) Paulik,V (2353)-Dolezal,P (2089) ICCF email 2017}) 13. Qd2 {[%emt 0:04:34]} Qf6 {[%emt 0:01:20] aiming for ...0-0.} 14. cxd4 {[%emt 0:06:30]} O-O {[%emt 0:00:27] [#] Strongly threatening ...Bg4.} 15. Nc3 {[%emt 0:00:14][%cal Bb1c3,Bc3e4,Be4g3][%mdl 32]} Bg4 {[%emt 0:00:20]} (15... Nh3+ $5 16. gxh3 Qxf3 $15) 16. Ne4 {[%emt 0:03:21] The position is equal.} Qf5 {[%emt 0:00:04]} 17. Ng3 {[%emt 0:00:09]} Qf6 {[%emt 0:00:01][%cal Of4g2] Hoping for ...Nxg2!} 18. Ne4 {[%emt 0:00:06]} Qf5 {[%emt 0:00:03]} 19. Ng3 {[%emt 0:00:05]} Qf6 {[%emt 0:00:04][%cal Of4g2] [#] And now ...Nxg2! would win.} 20. Ne4 {[%emt 0:00:22] An even fight not without its subleties.  Weighted Error Value: White=0.02 (flawless) /Black=0.02 (flawless)} 1/2-1/2

[Event "USA Championship 2022"]
[Site "Saint Louis"]
[Date "2022.10.12"]
[Round "7.4"]
[White "Caruana, Fabiano"]
[Black "Lenderman, Aleksandr"]
[Result "1-0"]
[ECO "D11"]
[WhiteElo "2763"]
[BlackElo "2535"]
[Annotator "TA"]
[PlyCount "101"]
[EventDate "2022.09.05"]
[EventType "tourn"]
[EventCountry "USA"]
[SourceTitle "playchess.com"]
[Source "ChessBase"]
[SourceQuality "1"]
[TimeControl "40/5400+30:1800+30"]

{[%evp 9,101,-2,-8,-8,-2,0,0,-6,11,9,16,16,16,13,26,0,0,0,0,0,0,0,0,0,0,-10,-12,-20,-6,-16,-40,-35,-43,-52,-32,-21,-25,-22,0,-37,-31,-47,-6,-18,76,29,62,60,70,9,503,503,488,473,466,428,1443,1370,1253,1025,961,945,883,876,723,705,1444,1431,1430,1430,1422,1422,1422,1182,1324,1409,1333,1271,1264,1264,1207,979,5120,5700,2464,2349,29968,29969,29969,29969,29971,29971,29965,4134]} 1. c4 {[%emt 0:00:03]} c6 {[%emt 0:00:08]} 2. d4 {[%emt 0:00:37]} d5 {[%emt 0:00:06]} 3. Nf3 {[%emt 0:00:48]} Nf6 {[%emt 0:00:07]} 4. Qc2 {[%emt 0:00:44]} dxc4 {[%emt 0:00:11]} 5. e4 {[%emt 0:00:12]} b5 {[%emt 0:01:38]} 6. b3 {[%emt 0:02:00] D11: Slav Defence: 3 Nf3 sidelines and 3...Nf6 4 e3 Bg4.} cxb3 {[%emt 0:00:34]} 7. axb3 {[%emt 0:00:05]} e6 {[%emt 0:08:37]} 8. Bd3 {[%emt 0:00:19] The position is equal.} a6 {[%emt 0:02:02]} 9. O-O {[%emt 0:01:37][%mdl 1024] White has compensation.} Be7 {[%emt 0:03:20]} 10. Nc3 {[%emt 0:03:27]} Bb7 {[%emt 0:02:28]} 11. Rd1 {[%emt 0:04:04]} h6 {[%emt 0:03:55] [#]} 12. Qe2 $146 {[%emt 0:02:24]} ({Predecessor:} 12. h3 Nbd7 13. Be3 Rc8 14. e5 Nd5 15. Nxd5 cxd5 16. Qd2 Nb8 17. b4 Rc4 18. Rab1 {0-1 (39) Firouzja,A (2728)-Caruana,F (2835) chess24.com INT 2020}) 12... Nbd7 {[%emt 0:01:13]} 13. e5 {[%emt 0:05:34]} Nd5 {[%emt 0:00:12]} 14. Nxd5 {[%emt 0:00:08]} cxd5 {[%emt 0:00:06]} 15. Ne1 {[%emt 0:00:55]} Qb6 {[%emt 0:02:34]} 16. Qg4 {[%emt 0:07:52]} g6 {[%emt 0:01:31]} 17. Bd2 {[%emt 0:12:59]} b4 {[%emt 0:00:57]} 18. Be3 {[%emt 0:04:19]} a5 {[%emt 0:01:27]} 19. Qe2 {[%emt 0:14:21]} Kf8 {[%emt 0:05:04]} 20. g3 {[%emt 0:05:42]} Ba6 {[%emt 0:03:33]} (20... Kg7 {is more complex.} 21. h4 Ba6 22. h5 g5) 21. h4 {[%emt 0:02:59]} h5 {[%emt 0:03:29]} 22. Nf3 {[%emt 0:00:45]} Kg7 {[%emt 0:01:32]} 23. Bg5 {[%emt 0:00:33]} Rhe8 {[%emt 0:04:18]} 24. Rdc1 {[%emt 0:09:51]} Bxd3 {[%emt 0:07:16]} 25. Qxd3 {[%emt 0:00:04]} Bxg5 {[%emt 0:03:11]} 26. Nxg5 {[%emt 0:00:04]} Rac8 {[%emt 0:01:08]} (26... Kg8 $11 {keeps the balance.}) 27. Kg2 {[%emt 0:03:30] White is more active.} ({Don't play} 27. Qf3 Rxc1+ 28. Rxc1 Re7 $11) (27. Rxc8 $16 Rxc8 28. Qf3) 27... f6 {[%emt 0:10:17]} 28. exf6+ {[%emt 0:00:10]} Nxf6 {[%emt 0:00:07]} 29. Qe2 $40 {[%emt 0:10:01][%mdl 128] Black needs to defend precisely.} (29. Qe3 $14 Rxc1 30. Rxc1) 29... Kg8 $2 {[%emt 0:13:24][%mdl 8192] This costs Black the game.} (29... Ne4 $1 $11) 30. Rxc8 $18 {[%emt 0:02:01]} Rxc8 {[%emt 0:00:01] [#]} 31. Rxa5 $3 {[%emt 0:00:13][%mdl 512] Threatens to win with Ra6.} Re8 {[%emt 0:05:22]} 32. Ra6 {[%emt 0:02:47]} Qxd4 {[%emt 0:00:06]} (32... Qc7 $142 33. Qd3 (33. Nxe6 Qf7 $16) 33... Ne4 34. Nxe6 Rxe6) 33. Rxe6 {[%emt 0:00:04]} Rf8 {[%emt 0:00:18]} 34. Qc2 {[%emt 0:01:38]} Ne4 {[%emt 0:02:43]} 35. Rxg6+ {[%emt 0:00:10]} Kh8 {[%emt 0:00:03]} 36. Rh6+ {[%emt 0:00:55][%cal Bg6h6,Bh6h5,Bh5g5,Bg5g4][%mdl 32]} Kg8 {[%emt 0:00:11]} 37. Nxe4 {[%emt 0:00:35]} dxe4 {[%emt 0:00:23]} 38. Rxh5 {[%emt 0:00:49][%mdl 4096] Endgame KQR-KQR} Qf6 {[%emt 0:00:43]} 39. Rg5+ {[%emt 0:00:46]} Kh8 {[%emt 0:00:07]} 40. Qe2 {[%emt 0:00:58] Qh5+ would kill now.} Qf3+ {[%emt 0:00:28]} 41. Qxf3 {[%emt 0:30:04]} exf3+ {[%emt 0:30:06] KR-KR} 42. Kh3 {[%emt 0:00:14]} Rc8 {[%emt 0:00:18]} 43. Rg4 {[%emt 0:00:32]} Rc2 {[%emt 0:00:10]} 44. Rxb4 {[%emt 0:00:04]} Rxf2 {[%emt 0:00:04]} 45. Kg4 {[%emt 0:00:17] Hoping for Rb7.} Rf1 {[%emt 0:00:05]} 46. Rb7 {[%emt 0:00:19]} Kg8 {[%emt 0:00:23]} 47. b4 {[%emt 0:00:13][%cal Bb3b4,Bb4b5,Bb5b6,Bb6b7][%mdl 32]} Kh8 {[%emt 0:00:03]} 48. b5 {[%emt 0:00:05] White mates.} Kg8 {[%emt 0:00:03]} 49. b6 {[%emt 0:00:06]} Kh8 {[%emt 0:00:02]} 50. Rb8+ {[%emt 0:00:20]} Kg7 {[%emt 0:00:07]} 51. b7 {[%emt 0:00:04] Weighted Error Value: White=0.10 (very precise) /Black=0.29 (precise)} 1-0

[Event "USA Championship 2022"]
[Site "Saint Louis"]
[Date "2022.10.12"]
[Round "7.5"]
[White "Robson, Ray"]
[Black "So, Wesley"]
[Result "1-0"]
[ECO "E50"]
[WhiteElo "2690"]
[BlackElo "2774"]
[Annotator "TA"]
[PlyCount "69"]
[EventDate "2022.09.05"]
[EventType "tourn"]
[EventCountry "USA"]
[SourceTitle "playchess.com"]
[Source "ChessBase"]
[SourceQuality "1"]
[TimeControl "40/5400+30:1800+30"]

{[%evp 9,69,8,14,8,9,6,3,0,0,0,0,0,0,0,0,0,0,0,0,0,0,0,0,0,0,-9,-21,-23,116,60,64,29,184,216,214,214,194,197,531,458,654,650,557,666,656,669,614,480,678,672,671,649,639,644,639,632,577,533,4133,2608,795,693]} 1. d4 {[%emt 0:04:33]} Nf6 {[%emt 0:00:29]} 2. c4 {[%emt 0:00:23]} e6 {[%emt 0:00:07]} 3. Nc3 {[%emt 0:00:40]} Bb4 {[%emt 0:00:08]} 4. e3 {[%emt 0:00:24]} O-O {[%emt 0:00:15]} 5. Nf3 {[%emt 0:00:31]} Bxc3+ {[%emt 0:07:50]} 6. bxc3 {[%emt 0:00:13] E50: Nimzo-Indian: Rubinstein: 4...0-0 5 Nf3.} d6 {[%emt 0:00:02]} 7. Bd3 {[%emt 0:01:04]} e5 {[%emt 0:00:07] Hoping for ...e4. is currently scoring better than 7...Nbd7.} 8. e4 {[%emt 0:00:54] The position is equal.} Re8 {[%emt 0:03:03]} 9. O-O {[%emt 0:01:27]} exd4 {[%emt 0:00:09]} 10. cxd4 {[%emt 0:00:36] aiming for e5.} Nxe4 {[%emt 0:00:07]} 11. Re1 {[%emt 0:00:57]} Nf6 {[%emt 0:00:05]} 12. Rxe8+ {[%emt 0:00:28]} Qxe8 {[%emt 0:02:21]} 13. h3 {[%emt 0:00:54]} Nbd7 {[%emt 0:03:43] [#]} 14. Qc2 $146 {[%emt 0:00:41]} ({Predecessor:} 14. Bb2 d5 15. Qb3 Qd8 16. Re1 Nf8 17. cxd5 Nxd5 18. Bc4 Be6 19. Ba3 Nb6 20. Bxe6 Nxe6 21. Rxe6 fxe6 22. Qxe6+ Kh8 {½-½ (22) Kolpak,S (2311)-Jugl,P (2310) ICCF email 2019}) 14... b6 {[%emt 0:02:45]} 15. Bb2 {[%emt 0:08:30]} Bb7 {[%emt 0:17:45]} 16. d5 {[%emt 0:01:06]} Qf8 {[%emt 0:01:30]} 17. g4 {[%emt 0:08:09]} h6 {[%emt 0:00:18]} 18. Kh2 {[%emt 0:01:50]} c6 {[%emt 0:05:20]} (18... b5 $11) 19. g5 $1 $36 {[%emt 0:16:26][%mdl 2048] White has good play. White is more active.} hxg5 {[%emt 0:00:15]} 20. Nxg5 {[%emt 0:02:20] And now Bh7+ would win.} cxd5 $2 {[%emt 0:10:30] Loses the game.} (20... Qe7 $1 $11) 21. Bh7+ $18 {[%emt 0:18:06] A strong pair of Bishops.} Kh8 {[%emt 0:00:02]} 22. Bf5 {[%emt 0:00:28] Black must now prevent Bxd7.} Ne5 {[%emt 0:04:14]} 23. f4 $1 {[%emt 0:01:07]} Ng6 {[%emt 0:03:23]} (23... Nxc4 $2 24. Qf2 Kg8 25. Qh4) (23... Qe7 {is tougher.}) 24. Bxf6 {[%emt 0:02:08] White is clearly winning.} gxf6 {[%emt 0:00:04] [#]} 25. Nxf7+ {[%emt 0:00:30][%mdl 576] Remove Defender} Qxf7 {[%emt 0:00:28]} 26. Bxg6 {[%emt 0:00:08]} Qe7 {[%emt 0:07:00] Strongly threatening ...Qe3.} 27. Qf2 {[%emt 0:05:48] Inhibits Qe3.} f5 {[%emt 0:01:30]} 28. Rg1 {[%emt 0:01:02]} Rg8 {[%emt 0:02:10] Threatens to win with ...Qf6.} 29. Rg5 {[%emt 0:09:31] Qh4+ would kill now.} Rg7 {[%emt 0:00:25]} 30. Qh4+ {[%emt 0:04:31]} Kg8 {[%emt 0:00:01] [#]} 31. Qh5 $1 {[%emt 0:01:00] White threatens Bh7+ and mate.} ({Inferior is} 31. Bxf5 Qe2+ 32. Kg1 Qe3+ 33. Kh2 (33. Kh1 dxc4+ 34. Kh2 Qd2+ 35. Kg1 Qd4+ 36. Kf1 Bd5 $17) 33... Qe2+ 34. Kg1 Qe3+ 35. Kh2 (35. Kh1 dxc4+ 36. Kh2 Qd2+ 37. Kg1 Qd4+ 38. Kf1 Bd5 $17) 35... Qd2+ 36. Kg1 Qe3+ $11) 31... Bc8 {[%emt 0:02:36]} 32. cxd5 {[%emt 0:00:29]} a5 {[%emt 0:09:23]} 33. Qh6 {[%emt 0:04:35]} b5 {[%emt 0:00:49]} 34. Bh7+ {[%emt 0:01:49]} Kf8 {[%emt 0:00:01] [#]} 35. Rg2 $1 {[%emt 0:00:36] Weighted Error Value: White=0.05 (flawless) /Black=0.35} 1-0